bitfinex/quotes_SOLUSD_20250306
["timestamp","ask_amount","ask_price","bid_price","bid_amount"]
[1741292225273,82.0,145.05,144.96,107.64764886]
[1741292225274,82.28432314,145.04,144.96,82.1]
[1741292225460,0.28432314,145.02,144.96,82.1]
[1741292225651,0.28432314,145.0,144.92,28.90272839]
[1741292225978,20.28432314,145.0,144.92,28.90272839]
[1741292226145,0.28432314,144.98,144.91,111.00272839]
[1741292226347,0.28432314,144.96,144.9,6.74]
[1741292226653,82.0,144.95,144.88,28.90272839]
[1741292226846,82.28432314,144.94,144.88,28.90272839]
[1741292227053,82.28432314,144.94,144.87,28.90272839]
[1741292227249,82.28432314,144.94,144.85,88.84]
[1741292227250,6.8998,144.93,144.88,29.04488996]
[1741292227474,6.8998,144.93,144.88,0.14216157]
[1741292227655,18.933972,144.92,144.85,28.90272839]
[1741292227856,66.833972,144.92,144.86,0.14216157]
[1741292228376,66.833972,144.92,144.85,0.14216157]
[1741292228672,82.0,144.91,144.83,28.90272839]
[1741292228980,0.28432314,144.9,144.83,28.90272839]
[1741292229155,82.0,144.89,144.84,28.90272839]
[1741292229355,82.0,144.89,144.85,28.90272839]
[1741292229577,82.0,144.89,144.86,0.14216157]
[1741292229796,36.4913,144.97,144.86,0.14216157]
[1741292229797,129.9,144.99,144.89,18.79181043]
[1741292230091,36.4708,145.05,144.98,0.14216157]
[1741292230092,82.0,145.02,144.98,0.14216157]
[1741292231482,0.28432314,145.01,144.96,0.14216157]
[1741292232089,88.8956,145.02,144.96,0.14216157]
[1741292232683,0.28432314,145.01,144.96,0.14216157]
[1741292233285,0.28432314,144.99,144.91,142.67652031]
[1741292233475,82.28432314,144.99,144.92,0.14216157]
[1741292234986,82.28432314,144.99,144.92,47.01808188]
[1741292235489,89.18162314,144.99,144.92,47.01808188]
[1741292235687,88.8973,144.99,144.92,47.01808188]
[1741292235885,82.0,144.99,144.95,0.14216157]
[1741292236271,82.0,144.99,144.94,0.14216157]
[1741292236877,82.0,144.99,144.94,46.87592031]
[1741292237380,82.0,144.99,144.93,0.14216157]
[1741292237584,82.0,144.99,144.96,0.14216157]
[1741292237792,18.933972,145.03,144.96,47.01808188]
[1741292238001,82.0,145.02,144.98,0.14216157]
[1741292238181,82.0,145.02,144.95,46.87592031]
[1741292238494,150.64455808,145.01,144.92,46.87592031]
[1741292238674,0.28432314,144.99,144.94,0.14216157]
[1741292238880,82.0,144.98,144.94,0.14216157]
[1741292239391,82.0,144.98,144.92,47.01808188]
[1741292239691,82.0,144.98,144.93,53.77572031]
[1741292239894,88.8975,144.98,144.92,359.01808188]
[1741292240077,88.8975,144.98,144.92,47.01808188]
[1741292240078,82.0,144.98,144.92,47.01808188]
[1741292240268,82.0,144.98,144.93,46.87592031]
[1741292240468,88.8975,144.98,144.93,46.87592031]
[1741292240667,82.0,144.98,144.94,0.14216157]
[1741292240976,82.0,144.98,144.95,0.14216157]
[1741292241383,82.0,144.98,144.93,47.01808188]
[1741292241912,88.8975,144.98,144.93,46.87592031]
[1741292242068,88.8975,144.98,144.93,0.14216157]
[1741292242876,82.28432314,144.97,144.91,0.14216157]
[1741292243077,82.0,144.96,144.91,0.14216157]
[1741292243602,0.28432314,144.95,144.89,128.97592031]
[1741292243911,0.28432314,144.93,144.85,165.8661]
[1741292244201,82.0,144.92,144.87,47.01808188]
[1741292244500,82.0,144.92,144.87,46.87592031]
[1741292244886,82.0,144.92,144.86,47.01808188]
[1741292245598,82.0,144.92,144.88,0.14216157]
[1741292245798,82.0,144.91,144.88,0.14216157]
[1741292245975,6.9013,144.9,144.88,0.14216157]
[1741292246301,88.9009,144.91,144.88,0.14216157]
[1741292246878,82.0,144.91,144.88,0.14216157]
[1741292247394,88.9008,144.91,144.87,0.033]
[1741292249097,130.18432314,144.9,144.87,0.033]
[1741292250100,7.18652314,144.88,144.87,0.033]
[1741292250289,75.54873694,144.88,144.87,0.033]
[1741292250899,73.736172,144.88,144.87,0.033]
[1741292256604,47.9,144.95,144.88,0.14216157]
[1741292256816,47.9,144.94,144.88,29.04266659]
[1741292256995,47.9,144.94,144.9,28.90050502]
[1741292257198,82.0,144.95,144.92,29.04266659]
[1741292257400,82.0,144.95,144.92,0.14216157]
[1741292257600,82.0,144.95,144.92,29.04266659]
[1741292257908,82.0,144.95,144.92,0.14216157]
[1741292258319,82.0,144.95,144.9,29.04266659]
[1741292258689,82.0,144.95,144.93,0.14216157]
[1741292258891,82.0,144.95,144.93,28.90050502]
[1741292259114,82.0,144.95,144.93,0.14216157]
[1741292260194,82.0,144.95,144.91,0.14216157]
[1741292261022,82.0,144.95,144.92,0.14216157]
[1741292261237,82.0,144.95,144.93,28.90050502]
[1741292261591,82.0,144.95,144.93,0.14216157]
[1741292261906,82.0,144.95,144.92,0.14216157]
[1741292262100,82.0,144.97,144.92,0.14216157]
[1741292262293,82.0,144.97,144.92,29.04266659]
[1741292263700,82.0,144.97,144.91,6.72]
[1741292263701,0.28432314,144.96,144.91,6.72]
[1741292264020,0.28432314,144.96,144.92,0.14216157]
[1741292264219,82.0,144.97,144.93,28.90050502]
[1741292264525,82.0,144.97,144.94,0.14216157]
[1741292264912,82.0,144.97,144.92,29.04266659]
[1741292265223,88.8983,144.97,144.92,0.14216157]
[1741292265523,82.0,144.97,144.92,29.04266659]
[1741292265825,82.0,144.97,144.94,0.14216157]
[1741292266025,81.8,144.97,144.94,0.14216157]
[1741292266633,81.8,144.97,144.93,29.04266659]
[1741292266799,81.83,144.99,144.96,28.90050502]
[1741292267005,0.03,144.99,144.97,29.04266659]
[1741292267325,0.03,144.99,144.97,0.14216157]
[1741292267525,0.03,144.99,144.95,0.14216157]
[1741292267834,0.03,144.99,144.95,29.04266659]
[1741292268835,0.03,144.99,144.97,29.04266659]
[1741292269200,0.03,144.99,144.97,0.14216157]
[1741292271021,0.03,144.99,144.97,29.04266659]
[1741292271233,0.03,144.99,144.97,0.14216157]
[1741292271416,0.03,144.99,144.97,0.17516157]
[1741292272323,0.03,144.99,144.97,29.07566659]
[1741292272524,0.03,144.99,144.98,29.04266659]
[1741292272907,0.03,144.99,144.98,0.14216157]
[1741292273606,0.03,144.99,144.98,29.04266659]
[1741292274513,0.03,144.99,144.98,118.04016659]
[1741292274711,0.03,144.99,144.98,430.04016659]
[1741292274909,0.03,144.99,144.98,448.97413859]
[1741292275103,0.03,145.07,145.03,28.90050502]
[1741292275427,6.9232,145.07,145.02,0.14216157]
[1741292276214,24.1562,145.07,145.02,0.14216157]
[1741292276615,6.8941,145.05,145.02,0.14216157]
[1741292276826,6.8941,145.05,145.01,6.7]
[1741292277025,6.8941,145.05,144.98,28.90050502]
[1741292277230,81.8,145.04,144.99,0.14216157]
[1741292277926,81.8,145.03,144.98,0.14216157]
[1741292278825,88.6953,145.03,144.98,0.14216157]
[1741292279213,81.8,145.03,144.98,35.93996659]
[1741292280117,88.6951,145.03,144.98,29.04266659]
[1741292280313,81.8,145.03,145.0,28.90050502]
[1741292280631,88.6952,145.03,144.98,28.90050502]
[1741292280934,88.6952,145.03,144.98,0.14216157]
[1741292281311,88.6952,145.03,144.98,29.04266659]
[1741292281632,81.8,145.03,145.0,0.14216157]
[1741292282615,81.8,145.02,144.98,0.14216157]
[1741292282814,82.08432314,145.01,144.97,0.033]
[1741292283017,81.8,145.0,144.97,0.033]
[1741292283413,0.28432314,144.99,144.97,0.033]
[1741292283610,81.8,144.98,144.97,0.033]
[1741292283817,18.933972,144.98,144.97,0.033]
[1741292284616,25.831472,144.98,144.97,0.033]
[1741292286523,47.7,144.99,144.97,0.033]
[1741292286922,0.03,145.03,144.98,28.90050502]
[1741292287231,7.20942314,145.03,144.99,29.04266659]
[1741292287620,7.20942314,145.03,144.99,0.14216157]
[1741292288028,6.9251,145.03,144.99,0.14216157]
[1741292288228,6.9252,145.03,144.99,28.90050502]
[1741292288533,0.03,145.03,145.0,0.14216157]
[1741292288923,0.31432314,145.03,144.98,0.14216157]
[1741292289133,0.31432314,145.03,144.98,29.04266659]
[1741292289340,0.31432314,145.03,144.99,0.14216157]
[1741292290243,83.81043903,145.02,144.97,0.033]
[1741292290452,0.28432314,145.0,144.97,0.033]
[1741292290652,82.0,144.99,144.97,0.033]
[1741292290836,88.8974,144.99,144.97,0.033]
[1741292291470,82.0,145.02,144.99,0.14216157]
[1741292291962,0.03,145.03,145.01,28.90050502]
[1741292292174,0.03,145.03,144.98,29.04266659]
[1741292292662,82.0,145.02,144.98,0.14216157]
[1741292292964,6.896,145.01,144.98,0.14216157]
[1741292293260,6.896,145.01,144.97,6.733]
[1741292293496,6.896,145.01,144.97,0.17516157]
[1741292294335,0.28432314,145.0,144.97,0.033]
[1741292294545,82.0,144.99,144.97,0.033]
[1741292295236,82.0,144.99,144.97,28.93350502]
[1741292295462,82.0,144.99,144.98,0.14216157]
[1741292295867,82.0,144.99,144.98,29.04266659]
[1741292296166,82.0,144.99,144.98,0.14216157]
[1741292296871,18.67964886,145.03,145.0,0.14216157]
[1741292296872,82.03,145.03,145.0,0.14216157]
[1741292297071,0.03,145.03,145.02,0.14216157]
[1741292299382,0.03,145.03,145.01,35.79630502]
[1741292299383,0.03,145.03,145.01,0.14216157]
[1741292300086,0.03,145.03,145.02,28.90050502]
[1741292300575,0.03,145.03,145.01,29.04266659]
[1741292300881,0.03,145.03,145.02,29.04266659]
[1741292301082,0.03,145.03,145.02,35.93826659]
[1741292301385,0.03,145.03,145.02,0.14216157]
[1741292301579,0.03,145.03,145.0,28.90050502]
[1741292301784,0.03,145.03,145.0,0.14216157]
[1741292302159,0.03,145.03,145.0,29.04266659]
[1741292302359,0.03,145.03,145.01,0.14216157]
[1741292302561,0.03,145.03,145.02,28.90050502]
[1741292303088,0.03,145.03,145.02,0.14216157]
[1741292303383,0.03,145.03,145.02,28.90050502]
[1741292303881,0.03,145.03,144.99,35.79740502]
[1741292304064,0.03,145.03,145.0,0.14216157]
[1741292304982,7.17992314,145.02,144.97,18.05037606]
[1741292305185,82.0,145.01,144.97,0.033]
[1741292305756,148.633972,145.0,144.97,0.033]
[1741292307089,18.933972,144.98,144.97,0.033]
[1741292310292,18.64964886,145.0,144.97,0.033]
[1741292310599,47.7,145.01,144.97,0.033]
[1741292310792,6.6007,145.02,144.97,0.033]
[1741292310957,6.6007,145.02,144.97,340.88671307]
[1741292311158,18.67964886,145.03,144.99,0.14216157]
[1741292311965,100.67964886,145.03,144.99,0.14216157]
[1741292313968,0.28432314,145.02,144.97,0.17516157]
[1741292314184,0.28432314,145.02,144.97,0.033]
[1741292315068,7.18012314,145.02,144.97,0.033]
[1741292315687,82.0,145.01,144.97,0.033]
[1741292317171,88.8961,145.01,144.97,0.033]
[1741292318393,0.28432314,145.0,144.97,0.033]
[1741292318574,102.74476248,145.0,144.97,0.033]
[1741292318892,18.64964886,144.98,144.97,0.033]
[1741292319088,47.98432314,144.98,144.97,0.033]
[1741292319297,47.7,144.98,144.97,0.033]
[1741292320471,54.88182314,144.98,144.97,0.033]
[1741292320788,47.7,144.98,144.97,0.033]
[1741292321666,82.0,145.0,144.97,0.033]
[1741292321871,82.0,145.0,144.97,29.02887464]
[1741292322069,82.0,145.02,145.0,0.14216157]
[1741292322565,82.0,145.02,144.97,0.033]
[1741292322766,88.8956,145.02,144.98,0.14216157]
[1741292323673,82.0,145.02,144.98,28.99587464]
[1741292323871,82.0,145.02,144.99,28.85371307]
[1741292324079,0.03,145.03,144.99,28.85371307]
[1741292324463,0.03,145.03,145.01,0.14216157]
[1741292325270,0.03,145.03,145.02,0.14216157]
[1741292325793,0.03,145.03,145.02,28.99587464]
[1741292325992,0.03,145.03,145.01,28.99587464]
[1741292326290,0.03,145.03,145.02,28.85371307]
[1741292326690,0.03,145.03,145.02,35.74931307]
[1741292326888,0.03,145.03,145.02,6.8956]
[1741292327396,0.03,145.03,145.01,28.99587464]
[1741292327397,0.03,145.03,145.01,35.89177464]
[1741292328681,0.03,145.03,145.01,25.05044511]
[1741292329183,0.03,145.03,145.01,337.05044511]
[1741292331011,0.03,145.03,145.02,18.15454511]
[1741292331274,0.03,145.03,145.02,0.14216157]
[1741292332095,82.0,145.02,144.97,0.033]
[1741292332399,82.0,145.02,144.97,0.17516157]
[1741292332780,82.0,145.02,144.99,0.033]
[1741292333593,0.03,145.03,144.99,0.033]
[1741292334975,6.9251,145.03,144.99,0.033]
[1741292335173,0.03,145.03,144.99,0.033]
[1741292338692,0.03,145.03,144.99,18.18754511]
[1741292339704,0.03,145.03,145.0,6.8965]
[1741292340395,0.03,145.03,144.99,0.033]
[1741292340697,0.03,145.03,144.99,0.17516157]
[1741292340901,82.0,145.02,144.99,0.033]
[1741292341906,0.03,145.03,144.99,18.04538354]
[1741292342109,0.03,145.03,145.01,18.15454511]
[1741292342587,0.03,145.03,145.0,0.14216157]
[1741292342897,0.03,145.03,145.0,18.15454511]
[1741292343489,0.03,145.03,145.01,18.01238354]
[1741292343809,0.03,145.03,145.01,6.896]
[1741292344106,0.03,145.03,145.0,312.14216157]
[1741292344402,0.03,145.03,145.0,0.14216157]
[1741292344580,0.03,145.03,145.0,7.03866157]
[1741292344989,0.03,145.03,145.0,42.29234511]
[1741292345780,0.03,145.03,145.0,7.03866157]
[1741292345981,0.03,145.03,145.0,0.14216157]
[1741292347284,0.03,145.03,145.0,7.03866157]
[1741292347807,0.03,145.03,145.0,25.05104511]
[1741292348009,0.03,145.03,145.0,7.03866157]
[1741292348201,0.03,145.03,145.0,25.05104511]
[1741292348995,0.03,145.03,145.0,7.03866157]
[1741292349209,0.03,145.03,145.0,25.05104511]
[1741292349715,0.03,145.03,145.02,0.14216157]
[1741292349891,0.03,145.03,145.02,18.15454511]
[1741292350087,0.03,145.03,145.02,25.05014511]
[1741292350607,0.03,145.07,145.03,0.14216157]
[1741292350811,0.03,145.07,145.05,18.15454511]
[1741292351222,0.03,145.07,145.05,0.14216157]
[1741292351803,0.03,145.07,145.05,312.14216157]
[1741292352002,0.03,145.07,145.05,0.14216157]
[1741292352623,0.03,145.07,145.05,7.03626157]
[1741292352803,0.03,145.07,145.05,0.14216157]
[1741292353917,0.03,145.07,144.99,0.033]
[1741292353918,0.31432314,145.07,144.99,0.033]
[1741292354095,0.31432314,145.07,145.01,0.14216157]
[1741292354096,82.0,145.06,145.01,0.14216157]
[1741292354414,82.0,145.06,145.01,18.01238354]
[1741292354720,0.28432314,145.05,144.99,0.033]
[1741292354896,81.0,145.04,144.99,0.033]
[1741292355226,81.0,145.03,144.99,0.033]
[1741292355389,0.28432314,145.02,144.99,0.033]
[1741292355800,81.0,145.01,144.99,0.033]
[1741292357200,81.0,145.05,145.0,18.15454511]
[1741292357610,81.0,145.05,145.0,0.14216157]
[1741292358212,81.0,145.05,145.02,0.14216157]
[1741292360229,81.0,145.05,145.03,0.14216157]
[1741292362429,81.03,145.07,145.04,6.8946]
[1741292363406,87.9233,145.07,145.01,18.01238354]
[1741292363611,87.9233,145.07,145.01,0.14216157]
[1741292364110,0.28432314,145.06,145.0,7.03866157]
[1741292364430,81.0,145.05,145.0,6.8965]
[1741292364641,81.0,145.05,145.01,0.14216157]
[1741292365040,81.0,145.05,145.0,24.90888354]
[1741292365041,0.28432314,145.04,144.99,0.033]
[1741292365336,81.0,145.03,144.99,0.033]
[1741292365523,81.0,145.02,144.99,0.033]
[1741292365909,81.0,145.02,144.99,7.07216157]
[1741292366635,81.0,145.02,144.99,0.17516157]
[1741292366940,81.0,145.02,144.99,7.07216157]
[1741292367127,81.0,145.01,144.99,0.033]
[1741292367449,0.28432314,145.0,144.99,0.033]
[1741292369118,27.64136528,145.0,144.99,0.033]
[1741292369323,20.74486528,145.0,144.99,0.033]
[1741292369530,27.64136528,145.0,144.99,0.033]
[1741292369736,20.74486528,145.0,144.99,0.033]
[1741292370536,0.28432314,145.0,144.99,0.033]
[1741292373135,18.64964886,145.01,144.99,0.033]
[1741292373136,82.0,145.01,144.99,0.033]
[1741292374249,82.0,145.04,145.0,18.01238354]
[1741292374617,82.0,145.04,145.0,0.14216157]
[1741292375015,82.0,145.04,145.0,7.03856157]
[1741292375535,82.0,145.04,145.0,0.14216157]
[1741292375735,82.0,145.04,144.99,0.17516157]
[1741292375921,82.0,145.04,144.99,18.18754511]
[1741292376121,82.0,145.04,144.99,25.08444511]
[1741292376936,82.0,145.04,145.0,18.01238354]
[1741292377143,0.03,145.05,145.03,18.01238354]
[1741292377368,0.03,145.05,145.04,0.14216157]
[1741292377855,0.03,145.05,145.04,18.15454511]
[1741292378025,0.03,145.05,145.04,0.14216157]
[1741292378229,0.03,145.05,145.01,18.01238354]
[1741292378427,0.03,145.05,145.02,0.14216157]
[1741292378836,0.03,145.05,145.0,24.71238354]
[1741292379044,88.9242,145.05,145.01,0.14216157]
[1741292379437,82.03,145.05,145.01,0.14216157]
[1741292380750,88.9242,145.05,145.01,0.14216157]
[1741292382755,82.0,145.04,145.01,0.14216157]
[1741292383841,82.0,145.04,145.01,7.03806157]
[1741292384343,82.0,145.04,145.01,0.14216157]
[1741292385149,82.0,145.04,145.03,0.14216157]
[1741292385351,0.03,145.05,145.03,18.15454511]
[1741292386055,0.03,145.05,145.04,18.15454511]
[1741292386759,0.03,145.05,145.04,0.14216157]
[1741292388445,0.03,145.05,145.04,7.03676157]
[1741292388756,0.03,145.05,145.04,25.04914511]
[1741292390231,0.03,145.05,145.04,337.04914511]
[1741292391230,0.03,145.05,145.04,355.06152865]
[1741292391427,0.03,145.05,145.04,43.06152865]
[1741292391827,0.03,145.05,145.04,125.16152865]
[1741292392249,0.03,145.05,145.04,143.81117751]
[1741292393730,0.03,145.05,145.04,144.09550065]
[1741292394364,0.03,145.05,145.04,143.81117751]
[1741292394665,0.03,145.05,145.04,456.09550065]
[1741292394906,0.0001,145.05,145.04,458.09550065]
[1741292395880,0.0001,145.05,145.04,456.09550065]
[1741292396387,0.0001,145.05,145.04,458.09550065]
[1741292396688,0.0001,145.05,145.04,456.09550065]
[1741292397777,0.0001,145.05,145.04,455.81117751]
[1741292400296,0.0001,145.05,145.04,82.1]
[1741292400476,0.0001,145.05,145.04,100.11238354]
[1741292400672,0.03,145.07,145.05,18.64964886]
[1741292400994,0.03,145.07,145.06,19.60167428]
[1741292401584,0.03,145.1,145.07,0.14216157]
[1741292401894,0.03,145.1,145.09,18.15454511]
[1741292402370,0.0001,145.1,145.09,136.91657751]
[1741292402575,1.8735092,145.12,145.09,137.20090065]
[1741292402790,1.8735092,145.12,145.11,74.81657751]
[1741292403094,1.8735092,145.12,145.11,158.53517751]
[1741292403291,1.8735092,145.12,145.11,470.53517751]
[1741292403687,1.8735092,145.12,145.11,477.42647751]
[1741292403878,1.8735092,145.12,145.11,165.42647751]
[1741292404485,1.8735092,145.12,145.11,167.42647751]
[1741292404689,9.2e-06,145.13,145.12,18.79181043]
[1741292404999,10.71925983,145.24,145.17,18.79181043]
[1741292405202,10.71925983,145.24,145.23,18.15454511]
[1741292405702,10.71925983,145.24,145.22,0.14216157]
[1741292405894,10.71925983,145.24,145.2,0.14216157]
[1741292406205,82.0,145.23,145.2,0.14216157]
[1741292406779,82.0,145.23,145.19,0.14216157]
[1741292407484,0.28432314,145.22,145.18,0.14216157]
[1741292407690,6.8865,145.21,145.18,0.14216157]
[1741292407888,82.0,145.21,145.18,18.15454511]
[1741292408090,82.0,145.21,145.19,18.01238354]
[1741292408402,82.0,145.21,145.2,18.15454511]
[1741292409191,82.0,145.21,145.2,0.14216157]
[1741292409494,82.0,145.21,145.14,13.5895]
[1741292409691,88.8866,145.21,145.18,0.14216157]
[1741292410013,88.8866,145.21,145.16,18.01238354]
[1741292410226,82.0,145.21,145.17,0.14216157]
[1741292410378,82.0,145.21,145.19,18.15454511]
[1741292410779,82.0,145.21,145.14,407.6897]
[1741292410780,82.0,145.21,145.15,0.14216157]
[1741292411012,82.0,145.21,145.19,18.01238354]
[1741292411490,82.0,145.21,145.2,18.01238354]
[1741292411907,82.0,145.21,145.2,18.15454511]
[1741292416694,88.8856,145.23,145.2,18.15454511]
[1741292417019,88.8856,145.23,145.21,18.01238354]
[1741292417220,88.8856,145.23,145.2,18.15454511]
[1741292417713,82.0,145.23,145.2,18.15454511]
[1741292417923,82.0,145.23,145.21,18.01238354]
[1741292418428,82.0,145.23,145.2,18.15454511]
[1741292418588,82.03,145.23,145.2,18.15454511]
[1741292419195,0.28432314,145.22,145.16,0.14216157]
[1741292419399,82.0,145.21,145.18,18.01238354]
[1741292419802,82.0,145.21,145.2,0.14216157]
[1741292420113,82.03,145.23,145.2,18.15454511]
[1741292420990,88.9156,145.23,145.17,0.14216157]
[1741292421200,82.0,145.22,145.19,18.01238354]
[1741292422423,82.0,145.22,145.19,0.14216157]
[1741292422625,0.28432314,145.21,145.16,330.01238354]
[1741292422798,82.0,145.22,145.17,18.01238354]
[1741292422991,82.0,145.22,145.18,0.14216157]
[1741292423312,0.7574266,145.23,145.21,38.15454511]
[1741292423512,0.7574266,145.23,145.21,102.24216157]
[1741292423688,0.7574266,145.23,145.22,18.15454511]
[1741292424519,0.7574266,145.23,145.22,25.04064511]
[1741292424719,0.7574266,145.23,145.22,7.02826157]
[1741292425014,0.7574266,145.23,145.22,25.04064511]
[1741292425591,0.7574266,145.23,145.22,337.04064511]
[1741292426305,0.7574266,145.23,145.18,90.2948]
[1741292426507,0.7574266,145.23,145.21,0.14216157]
[1741292426693,0.7574266,145.23,145.21,18.15454511]
[1741292428400,0.7574266,145.23,145.22,18.01238354]
[1741292429095,0.7574266,145.23,145.22,24.89848354]
[1741292429296,0.7574266,145.23,145.21,25.04094511]
[1741292429897,0.7574266,145.23,145.22,18.01238354]
[1741292431733,0.7574266,145.23,145.21,18.15454511]
[1741292432022,0.7574266,145.23,145.19,312.0]
[1741292432023,0.7574266,145.23,145.2,24.89898354]
[1741292432441,0.7574266,145.23,145.19,18.15454511]
[1741292432640,0.7574266,145.23,145.19,24.89978354]
[1741292432842,91.45089478,145.23,145.18,0.033]
[1741292433140,130.3064,145.22,145.18,0.033]
[1741292433339,132.11470603,145.22,145.18,0.033]
[1741292434143,130.3064,145.22,145.18,0.033]
[1741292434718,137.1926,145.22,145.18,0.033]
[1741292436213,130.3064,145.22,145.18,0.033]
[1741292436414,131.0338266,145.22,145.18,18.04538354]
[1741292436612,131.0338266,145.22,145.18,0.033]
[1741292437348,82.7274266,145.22,145.21,18.01238354]
[1741292437546,0.7274266,145.22,145.21,18.01238354]
[1741292437745,0.7274266,145.22,145.18,0.033]
[1741292437919,82.7274266,145.22,145.18,18.04538354]
[1741292438114,82.7274266,145.22,145.18,24.93298354]
[1741292439042,89.6135266,145.22,145.18,0.033]
[1741292439623,82.0,145.21,145.18,0.033]
[1741292439835,83.5045,145.21,145.18,0.033]
[1741292440354,6.57092314,145.19,145.18,0.033]
[1741292440559,27.02937462,145.19,145.18,0.033]
[1741292442148,33.91687462,145.19,145.18,0.033]
[1741292444218,37.34090776,145.19,145.18,0.033]
[1741292446951,18.6912589,145.19,145.18,0.033]
[1741292448260,0.28432314,145.17,145.09,0.033]
[1741292448427,8.48933791,145.16,145.09,0.033]
[1741292448628,0.28432314,145.14,145.09,0.033]
[1741292448829,2.09368861,145.14,145.09,0.033]
[1741292449232,0.28432314,145.14,145.09,0.033]
[1741292449553,8.69868256,145.15,145.09,18.04538354]
[1741292449857,8.69844669,145.15,145.09,0.033]
[1741292450245,8.69844669,145.15,145.09,18.04538354]
[1741292450640,0.28432314,145.14,145.09,0.033]
[1741292450848,128.8,145.13,145.09,0.033]
[1741292451559,129.5274266,145.13,145.09,0.033]
[1741292451963,0.28432314,145.12,145.09,0.033]
[1741292452262,129.5274266,145.13,145.09,0.033]
[1741292452759,136.4180266,145.13,145.09,0.033]
[1741292453754,1.80941757,145.12,145.09,0.033]
[1741292454253,129.5274266,145.13,145.09,0.033]
[1741292455334,82.0,145.12,145.09,0.033]
[1741292456832,83.80952608,145.12,145.09,0.033]
[1741292457033,6.8913,145.11,145.09,0.033]
[1741292457250,82.0,145.1,145.09,0.033]
[1741292460932,82.0,145.1,145.09,0.17516157]
[1741292461141,82.0,145.12,145.09,0.17516157]
[1741292463036,0.7274266,145.13,145.11,18.01238354]
[1741292463238,0.7274266,145.13,145.12,18.15454511]
[1741292463433,0.7274266,145.13,145.12,0.14216157]
[1741292463756,0.7274266,145.13,145.12,18.15454511]
[1741292464436,0.7274266,145.13,145.12,0.14216157]
[1741292464630,0.7274266,145.13,145.12,18.15454511]
[1741292465251,0.7274266,145.13,145.12,25.04534511]
[1741292465935,0.7274266,145.13,145.12,18.15454511]
[1741292466769,0.7274266,145.13,145.12,25.04534511]
[1741292467262,0.7274266,145.13,145.12,18.15454511]
[1741292468131,0.7274266,145.13,145.12,25.04534511]
[1741292469051,0.7274266,145.13,145.12,7.03296157]
[1741292469255,0.7274266,145.13,145.12,25.04534511]
[1741292469453,0.7274266,145.13,145.12,0.14216157]
[1741292471375,0.7274266,145.13,145.09,0.033]
[1741292471874,0.7274266,145.13,145.1,0.14216157]
[1741292472073,0.7274266,145.13,145.1,18.01238354]
[1741292472376,0.7274266,145.13,145.11,0.14216157]
[1741292472879,0.7274266,145.13,145.11,18.15454511]
[1741292473068,0.7274266,145.13,145.12,18.15454511]
[1741292473699,0.7274266,145.13,145.12,25.04534511]
[1741292474051,0.7274266,145.13,145.12,0.14216157]
[1741292475081,7.6177266,145.13,145.09,0.033]
[1741292475585,6.8913,145.11,145.09,0.033]
[1741292476379,19.76298463,145.13,145.09,0.033]
[1741292476380,82.0,145.1,145.09,0.033]
[1741292477255,82.7274266,145.13,145.1,0.14216157]
[1741292477466,82.7274266,145.13,145.1,18.15454511]
[1741292477670,82.7274266,145.13,145.12,0.14216157]
[1741292477995,82.7274266,145.13,145.12,18.15454511]
[1741292478175,0.7274266,145.13,145.12,18.15454511]
[1741292480200,0.7274266,145.13,145.12,0.14216157]
[1741292482195,0.7274266,145.13,145.11,0.14216157]
[1741292483374,0.7274266,145.13,145.11,18.15454511]
[1741292483785,0.7274266,145.13,145.12,25.04534511]
[1741292484693,0.7274266,145.13,145.12,337.04534511]
[1741292486195,0.7274266,145.13,145.12,330.15454511]
[1741292486373,0.7274266,145.13,145.12,18.15454511]